bitfinex-derivatives/quotes_SOLF0:USTF0_20240830
["timestamp","ask_amount","ask_price","bid_price","bid_amount"]
[1724976002091,1.3586,140.05,139.86,20.18176283]
[1724976003189,1.3586,140.05,139.86,2.568]
[1724976003398,0.04826825,139.97,139.94,0.05104946]
[1724976003590,0.04928473,139.97,139.94,0.04688752]
[1724976005693,4.46928473,139.97,139.94,0.04688752]
[1724976005992,4.46928473,139.97,139.84,17.61376283]
[1724976005993,0.04928473,139.97,139.84,17.61376283]
[1724976006191,4.42,139.96,139.84,17.61376283]
[1724976006490,4.42,139.96,139.85,1.18784628]
[1724976006712,1.329,139.95,139.85,1.18784628]
[1724976006886,1.329,139.95,139.84,9.35773639]
[1724976007087,0.05048479,139.91,139.89,0.05060363]
[1724976007996,4.42,139.9,139.82,1.393]
[1724976008199,4.42,139.9,139.8,4.42]
[1724976008395,8.06968707,139.9,139.81,1.18833886]
[1724976008701,8.06968707,139.9,139.79,1.3492]
[1724976008995,0.04597338,139.86,139.83,0.05283957]
[1724976009890,4.42,139.85,139.83,0.05283957]
[1724976010190,0.04597338,139.86,139.83,0.05283957]
[1724976010592,4.42,139.85,139.83,0.05283957]
[1724976010800,4.42,139.84,139.83,0.05283957]
[1724976011194,0.04597338,139.86,139.83,0.05283957]
[1724976013402,3.53722406,139.93,139.83,0.05283957]
[1724976013403,3.53280665,140.01,139.83,0.05283957]
[1724976013606,2.6287,139.96,139.84,4.42]
[1724976013802,2.6287,139.96,139.85,7.1751]
[1724976014103,2.6287,139.96,139.85,2.7551]
[1724976014398,2.6287,139.96,139.89,0.05490827]
[1724976014399,0.05107583,139.92,139.89,0.05490827]
[1724976019102,4.1619,140.0,139.89,0.05490827]
[1724976019298,4.1619,140.0,139.87,1.2735]
[1724976019299,4.42,139.99,139.87,1.2735]
[1724976019500,4.42,139.98,139.87,1.2735]
[1724976020210,0.05331473,139.94,139.91,0.04576408]
[1724976020403,0.05363138,139.94,139.91,0.04598181]
[1724976021910,10.97,139.93,139.91,0.04598181]
[1724976022409,10.97,139.92,139.91,0.04598181]
[1724976023106,10.97,139.92,139.82,3.5040521]
[1724976023304,10.97,139.89,139.83,10.97]
[1724976023503,4.42,139.91,139.81,1.3894]
[1724976023504,10.97,139.87,139.81,13.7362]
[1724976023712,10.97,139.87,139.82,1.18833161]
[1724976024211,11.01842381,139.86,139.83,0.05204591]
[1724976024409,10.97,139.84,139.83,0.05204591]
[1724976026012,27.46,139.84,139.74,1.3912]
[1724976026206,27.46,139.8,139.75,1.18880671]
[1724976026620,27.46,139.8,139.73,2.6877]
[1724976027017,0.05146639,139.78,139.75,0.04976571]
[1724976031423,3.62766639,139.78,139.75,0.04976571]
[1724976031832,0.05146639,139.78,139.75,0.04976571]
[1724976033830,3.5765,139.77,139.75,0.04976571]
[1724976034427,3.5766,139.76,139.75,0.04976571]
[1724976034823,0.05146639,139.78,139.75,0.04976571]
[1724976035331,3.5766,139.77,139.75,0.04976571]
[1724976037826,4.47146639,139.78,139.75,0.04976571]
[1724976038425,0.05146639,139.78,139.75,0.04976571]
[1724976038625,3.5766,139.76,139.75,0.04976571]
[1724976039221,3.5776,139.73,139.66,27.46]
[1724976039427,3.5776,139.73,139.67,4.42]
[1724976039929,3.5777,139.72,139.67,4.42]
[1724976040134,0.0483996,139.71,139.68,0.05176889]
[1724976040324,0.0483996,139.71,139.69,3.5782]
[1724976040726,0.0483996,139.71,139.68,0.05176889]
[1724976040727,3.6263996,139.71,139.68,0.05176889]
[1724976040930,0.0483996,139.71,139.68,0.05176889]
[1724976041333,3.5782,139.7,139.68,0.05176889]
[1724976044131,3.6262996,139.71,139.68,0.05176889]
[1724976045327,0.0483996,139.71,139.68,0.05176889]
[1724976045933,0.0483996,139.71,139.69,3.5782]
[1724976046756,0.0483996,139.71,139.7,3.5782]
[1724976051039,3.5762,139.78,139.7,3.48782473]
[1724976051238,31.9,139.79,139.71,27.46]
[1724976051542,3.577,139.75,139.71,3.5777]
[1724976051738,27.46,139.77,139.71,3.5777]
[1724976051933,0.04567822,139.75,139.73,0.04856226]
[1724976052435,3.62277822,139.75,139.73,0.04856226]
[1724976056141,3.5771,139.74,139.73,0.04856226]
[1724976057741,89.4661955,139.94,139.73,31.94856226]
[1724976058041,6.2383,139.91,139.83,27.46]
[1724976058241,2.6654,139.91,139.83,31.071502]
[1724976058462,2.6654,139.91,139.85,27.46]
[1724976058739,9.89642505,140.09,139.96,3.5715]
[1724976058932,27.46,140.07,139.98,27.46]
[1724976059131,4.0027,140.08,139.98,27.46]
[1724976059132,4.44,140.08,139.98,27.46]
[1724976059337,4.8892651,140.14,140.0,27.46]
[1724976059534,27.46,140.09,139.99,27.46]
[1724976059740,0.04792945,140.05,140.03,0.05291226]
[1724976060436,0.04792945,140.05,139.96,34.26]
[1724976060744,4.72,140.04,139.96,34.26]
[1724976061038,34.26,140.07,139.96,34.26]
[1724976061238,4.72,140.06,139.96,34.26]
[1724976061439,34.26,140.05,139.94,38.98]
[1724976061744,0.04902569,140.02,140.0,0.04666988]
[1724976061944,4.72,140.01,140.0,0.04666988]
[1724976062148,0.04902569,140.02,140.0,0.04666988]
[1724976062840,3.61902569,140.02,140.0,0.04666988]
[1724976063140,0.04902569,140.02,140.0,0.04666988]
[1724976063538,0.04902569,140.02,139.94,34.26]
[1724976063841,34.30902569,140.02,139.92,34.26]
[1724976064048,3.5703,140.01,139.92,34.26]
[1724976064239,38.98,140.02,139.92,38.98]
[1724976064450,34.26,140.02,139.9,34.26]
[1724976064642,0.04829221,139.98,139.96,0.04561235]
[1724976064839,0.04829221,139.98,139.9,38.98]
[1724976065547,4.76829221,139.98,139.9,38.98]
[1724976066050,4.76829221,139.98,139.93,0.05167037]
[1724976066348,34.26,139.96,139.93,0.05167037]
[1724976066552,34.26,139.96,139.86,1.1878847]
[1724976066943,3.5719,139.95,139.88,3.5734]
[1724976067449,0.0472646,139.93,139.9,0.05239072]
[1724976070542,0.0472646,139.93,139.9,3.62539072]
[1724976070746,0.0472646,139.93,139.9,0.05239072]
[1724976071141,34.3072646,139.93,139.9,0.05239072]
[1724976071347,37.8328,139.91,139.9,0.05239072]
[1724976071541,37.8328,139.91,139.82,4.72]
[1724976071542,34.26,139.91,139.82,4.72]
[1724976071851,3.5732,139.9,139.85,3.5741]
[1724976072439,0.05217958,139.89,139.86,0.05474688]
[1724976072743,0.05217958,139.89,139.86,3.62874688]
[1724976073440,0.05217958,139.89,139.86,0.05474688]
[1724976073943,3.5738,139.87,139.86,0.05474688]
[1724976075048,34.26,139.87,139.77,62.84]
[1724976075242,34.26,139.87,139.78,1.18851278]
[1724976075448,3.5753,139.82,139.75,40.2805]
[1724976075646,34.26,139.84,139.76,1.18881145]
[1724976075947,3.5761,139.78,139.7,34.26]
[1724976076257,0.05217671,139.75,139.73,0.0489304]
[1724976076549,0.05253522,139.75,139.73,0.04617739]
[1724976077138,0.05253522,139.75,139.73,3.62347739]
[1724976077345,0.05253522,139.75,139.73,0.04617739]
[1724976079449,3.62963522,139.75,139.73,0.04617739]
[1724976080350,34.31253522,139.75,139.69,4.72]
[1724976080544,34.31253522,139.75,139.65,34.26]
[1724976080851,34.26,139.75,139.65,34.26]
[1724976081049,3.5776,139.72,139.67,3.5789]
[1724976081257,34.26,139.73,139.63,34.26]
[1724976081443,0.05238296,139.69,139.67,0.047135]
[1724976082857,3.63088296,139.69,139.67,0.047135]
[1724976083754,3.5787,139.68,139.67,0.047135]
[1724976084551,3.63078296,139.69,139.67,0.047135]
[1724976084847,0.05238296,139.69,139.67,0.047135]
[1724976085445,3.5787,139.68,139.67,0.047135]
[1724976089447,3.5796,139.65,139.61,3.5804]
[1724976089953,3.5795,139.65,139.6,3.5807]
[1724976090456,0.05167516,139.64,139.6,3.5807]
[1724976090964,3.63137516,139.64,139.6,3.5807]
[1724976091254,0.05167516,139.64,139.58,3.581]
[1724976091450,0.05167516,139.64,139.56,1.3004]
[1724976091657,0.05167516,139.64,139.55,1.3342]
[1724976091859,0.05373408,139.61,139.55,1.3342]
[1724976092346,3.5807,139.6,139.56,3.5815]
[1724976092956,3.581,139.59,139.55,3.5819]
[1724976093349,0.05373408,139.61,139.52,6.2452]
[1724976093350,34.31373408,139.61,139.52,1.3852]
[1724976093545,0.05108599,139.58,139.52,1.3852]
[1724976094353,3.50743052,139.76,139.57,34.26]
[1724976094553,3.50743052,139.76,139.63,34.26]
[1724976094554,1.3496,139.74,139.63,34.26]
[1724976094860,34.26,139.78,139.65,34.26]
[1724976095060,34.26,139.76,139.65,34.26]
[1724976095256,0.0513022,139.72,139.69,0.05015391]
[1724976095959,0.0513022,139.72,139.7,34.26]
[1724976096353,0.0513022,139.72,139.71,3.5779]
[1724976096958,0.0513022,139.72,139.7,37.8381]
[1724976097158,0.0513022,139.72,139.7,3.5781]
[1724976098262,0.0513022,139.72,139.69,0.05015391]
[1724976098263,1.3317,139.81,139.71,34.26]
[1724976098862,3.576,139.79,139.73,3.5772]
[1724976099161,8.436,139.79,139.73,3.5772]
[1724976099363,0.04717935,139.77,139.75,0.05254335]
[1724976100365,3.5766,139.76,139.75,0.05254335]
[1724976100765,0.04717935,139.77,139.75,0.05254335]
[1724976101555,3.5766,139.76,139.75,0.05254335]
[1724976101767,0.04717935,139.77,139.75,0.05254335]
[1724976103066,3.5766,139.76,139.75,0.05254335]
[1724976103965,8.4366,139.76,139.75,0.05254335]
[1724976107361,3.5766,139.76,139.75,0.05254335]
[1724976110264,4.90717935,139.77,139.75,0.05254335]
[1724976110464,0.04717935,139.77,139.75,0.05254335]
[1724976110868,0.04717935,139.77,139.76,3.5766]
[1724976111172,90.31567985,139.84,139.75,34.26]
[1724976111173,4.86,139.81,139.75,34.26]
[1724976111364,3.5753,139.82,139.77,3.5763]
[1724976111570,3.5753,139.82,139.75,34.26]
[1724976112371,0.05024671,139.8,139.77,3.62760294]
[1724976112670,0.05024671,139.8,139.77,0.05140294]
[1724976112973,0.05024671,139.8,139.78,3.5761]
[1724976113377,0.05024671,139.8,139.77,0.05140294]
[1724976113974,3.5759,139.79,139.77,0.05140294]
[1724976114366,0.05024671,139.8,139.77,0.05140294]
[1724976114572,3.5761,139.78,139.77,0.05140294]
[1724976119178,4.91024671,139.8,139.77,0.05140294]
[1724976119475,0.05024671,139.8,139.77,0.05140294]
[1724976120172,0.05024671,139.8,139.77,34.31140294]
[1724976120374,0.05024671,139.8,139.78,3.5759]
[1724976120574,0.05024671,139.8,139.77,34.31140294]
[1724976120768,90.31567985,139.84,139.79,34.26]
[1724976120970,4.98,139.88,139.81,34.26]
[1724976121166,4.98,139.9,139.83,34.26]
[1724976121372,3.5738,139.88,139.84,3.5744]
[1724976121771,0.05398221,139.87,139.85,0.05191234]
[1724976121978,0.05398221,139.87,139.85,34.31191234]
[1724976122370,9.0233,139.94,139.85,34.26]
[1724976122877,3.573,139.91,139.87,3.5736]
[1724976123078,9.0233,139.94,139.87,3.5736]
[1724976123279,0.05129471,139.92,139.89,0.05245101]
[1724976123670,3.573,139.91,139.89,0.05245101]
[1724976124076,3.5728,139.91,139.89,0.05245101]
[1724976125874,0.05129471,139.92,139.89,0.05245101]
[1724976127282,3.573,139.9,139.89,0.05245101]
[1724976127475,0.05129471,139.92,139.89,0.05245101]
[1724976128078,0.05129471,139.92,139.9,34.26]
[1724976129990,0.05129471,139.92,139.89,0.05245101]
[1724976131788,0.05129471,139.92,139.9,3.5729]
[1724976131985,0.05129471,139.92,139.89,0.05245101]
[1724976132986,3.62379471,139.92,139.89,0.05245101]
[1724976134893,0.05129471,139.92,139.89,0.05245101]
[1724976135085,0.05129471,139.92,139.9,34.26]
[1724976136194,0.05129471,139.92,139.91,3.5728]
[1724976137201,3.5716,139.96,139.92,3.5724]
[1724976137491,3.5716,139.96,139.92,37.8324]
[1724976137697,3.5719,139.95,139.92,37.8324]
[1724976137887,34.26,140.01,139.91,37.8327]
[1724976138299,3.5718,139.95,139.94,0.04753792]
[1724976140199,3.5716,139.96,139.94,0.04753792]
[1724976140708,3.5718,139.95,139.94,0.04753792]
[1724976141896,3.5729,139.91,139.89,34.26]
[1724976142101,3.5729,139.91,139.88,3.5735]
[1724976142895,3.62068425,139.91,139.88,3.62311418]
[1724976143090,3.573,139.9,139.88,0.04961418]
[1724976143498,0.04778425,139.91,139.88,0.04961418]
[1724976143891,3.5732,139.9,139.88,0.04961418]
[1724976144200,0.04778425,139.91,139.88,0.04961418]
[1724976144398,0.04778425,139.91,139.89,34.26]
[1724976145501,0.04778425,139.91,139.9,3.573]
[1724976146902,0.04778425,139.91,139.9,37.833]
[1724976147494,4.1481,139.99,139.9,34.26]
[1724976147699,2.7695,139.99,139.93,34.26]
[1724976148114,3.5714,139.97,139.93,37.8321]
[1724976148296,7.7295,139.99,139.91,34.26]
[1724976148495,4.96,139.98,139.91,34.26]
[1724976148701,3.62241391,139.96,139.93,0.04590941]
[1724976148901,0.05091391,139.96,139.93,0.04590941]
[1724976149302,3.572,139.94,139.93,0.04590941]
[1724976150711,40.5529,139.97,139.85,39.18]
[1724976151007,40.5529,139.97,139.86,3.574]
[1724976151301,6.2929,139.97,139.87,34.26]
[1724976151506,0.05266349,139.93,139.91,0.04980454]
[1724976151701,3.62506349,139.93,139.91,0.04980454]
[1724976151899,0.05266349,139.93,139.91,0.04980454]
[1724976152099,0.05266349,139.93,139.91,37.88250454]
[1724976152904,3.62516349,139.93,139.91,0.04980454]
[1724976153606,0.05266349,139.93,139.91,0.04980454]
[1724976154511,0.05266349,139.93,139.91,3.62250454]
[1724976154903,0.05266349,139.93,139.91,0.04980454]
[1724976156506,3.62496349,139.93,139.91,0.04980454]
[1724976156906,0.05266349,139.93,139.91,0.04980454]
[1724976160819,3.62496349,139.93,139.91,0.04980454]
[1724976161617,0.05266349,139.93,139.91,0.04980454]
[1724976161818,0.05266349,139.93,139.91,3.62260454]
[1724976163817,0.05266349,139.93,139.91,0.04980454]
[1724976164816,0.05266349,139.93,139.91,34.30980454]
[1724976165023,0.05266349,139.93,139.92,3.5725]
[1724976165319,3.5717,139.96,139.92,3.5725]
[1724976165521,3.5717,139.96,139.93,37.8323]
[1724976165729,3.5717,139.96,139.93,34.26]
[1724976166524,3.6192409,139.96,139.93,34.26]
[1724976166919,0.0475409,139.96,139.94,3.572]
[1724976167927,0.0475409,139.96,139.93,34.26]
[1724976168424,0.0475409,139.96,139.93,37.832]
[1724976168921,0.0475409,139.96,139.94,3.5719]
[1724976169122,0.0475409,139.96,139.93,34.26]
[1724976169729,6.3175409,139.96,139.93,34.26]
[1724976170026,6.3175409,139.96,139.94,3.572]
[1724976170929,11.6075409,139.96,139.94,3.572]
[1724976171127,15.1792409,139.96,139.93,34.26]
[1724976171331,11.6075409,139.96,139.93,34.26]
[1724976172033,11.6075409,139.96,139.94,27.43]
[1724976172330,15.1791409,139.96,139.94,27.43]
[1724976172828,11.6075409,139.96,139.94,27.43]
[1724976173031,11.6075409,139.96,139.95,27.43]
[1724976177027,15.1790409,139.96,139.94,27.47607915]
[1724976177528,3.5718,139.95,139.94,0.04607915]
[1724976177828,12.54,139.95,139.89,27.43]
[1724976178031,16.7174,139.95,139.87,27.43]
[1724976178228,4.92,139.94,139.87,27.43]
[1724976178632,3.5732,139.9,139.89,0.05497854]
[1724976178929,0.053946,139.92,139.89,27.48497854]
[1724976179727,3.5729,139.91,139.89,27.48497854]
[1724976180333,3.573,139.9,139.89,27.48497854]
[1724976180536,3.573,139.9,139.89,0.05497854]
[1724976180735,0.053946,139.92,139.83,27.43]
[1724976180736,27.43,139.92,139.83,27.43]
[1724976181030,3.5742,139.86,139.83,27.43]
[1724976181426,4.8,139.9,139.83,27.43]
[1724976181634,3.5738,139.87,139.85,0.05389313]
[1724976182934,3.5741,139.86,139.85,0.05389313]
[1724976183830,3.5741,139.86,139.76,27.43]
[1724976183831,4.8,139.86,139.76,27.43]
[1724976184033,4.8,139.86,139.77,3.5763]
[1724976184336,3.5753,139.82,139.78,27.43]
[1724976184729,0.05255931,139.81,139.79,0.05257205]
[1724976185529,2.6594,139.87,139.8,27.43]
[1724976185741,2.6594,139.87,139.79,27.48257205]
[1724976185742,2.6594,139.87,139.83,27.43]
[1724976186235,3.5743,139.86,139.83,27.43]
[1724976186544,3.62415058,139.86,139.83,27.47787809]
[1724976188443,3.5743,139.85,139.83,27.47787809]
[1724976188936,3.62395058,139.86,139.83,27.47787809]
[1724976189847,3.62395058,139.86,139.83,0.04787809]
[1724976189848,3.5743,139.85,139.83,0.04787809]
[1724976191350,3.5746,139.84,139.83,0.04787809]
[1724976191745,4.84985058,139.86,139.83,0.04787809]
[1724976191942,3.5744,139.85,139.83,0.04787809]
[1724976193044,0.04985058,139.86,139.83,27.47787809]
[1724976193444,0.04985058,139.86,139.83,31.05267809]
[1724976193845,0.04985058,139.86,139.85,27.43]
[1724976194034,1.4089,139.91,139.85,27.43]
[1724976194238,6.0904,139.94,139.9,27.43]
[1724976194544,1.2904,139.94,139.9,31.0029]
[1724976194940,0.05171605,139.93,139.91,0.04628678]
[1724976195447,3.62401605,139.93,139.91,0.04628678]
[1724976195644,5.80171605,139.93,139.91,0.04628678]
[1724976197342,9.37401605,139.93,139.91,0.04628678]
[1724976197543,14.66401605,139.93,139.91,0.04628678]
[1724976197947,11.09171605,139.93,139.91,0.04628678]
[1724976199348,11.09171605,139.93,139.92,31.0025]
[1724976199748,11.09171605,139.93,139.92,27.43]
[1724976200849,11.09171605,139.93,139.92,31.0025]
[1724976201352,7.62,139.95,139.94,3.572]
[1724976201546,3.5725,139.92,139.91,0.04628678]
[1724976201757,7.62,139.95,139.91,0.04628678]
[1724976202347,0.05030372,139.94,139.91,0.04628678]
[1724976202848,6.26,139.93,139.91,0.04628678]
[1724976203049,14.2,139.93,139.91,27.47628678]
[1724976204447,6.94,139.92,139.91,0.04628678]
[1724976204952,10.5125,139.92,139.91,0.04628678]
[1724976205251,6.94,139.92,139.91,0.04628678]
[1724976208946,10.5125,139.92,139.91,0.04628678]
[1724976209956,3.5736,139.88,139.86,27.43]
[1724976210951,3.62151521,139.88,139.86,27.48156232]
[1724976211154,0.04791521,139.88,139.86,27.48156232]
[1724976211553,0.04791521,139.88,139.87,3.5738]
[1724976212448,6.94,139.92,139.88,3.5734]
[1724976212954,10.5127,139.92,139.88,3.5734]
[1724976213452,0.04883099,139.91,139.88,3.5734]
[1724976215655,0.04883099,139.91,139.89,27.43]
[1724976216063,0.04883099,139.91,139.9,3.573]
[1724976216263,0.04883099,139.91,139.89,27.4774041]
[1724976216656,7.58,139.9,139.89,27.4774041]
[1724976217159,11.153,139.9,139.89,0.0474041]
[1724976218063,7.58,139.9,139.89,0.0474041]
[1724976218866,11.153,139.9,139.89,0.0474041]
[1724976219060,7.58,139.9,139.82,27.43]
[1724976219256,3.5745,139.85,139.8,27.43]
[1724976219563,4.86,139.88,139.82,31.0049]
[1724976219763,3.5742,139.86,139.82,31.0049]
[1724976220061,0.04656237,139.85,139.83,0.0505081]
[1724976220365,0.04656237,139.85,139.83,3.6253081]
[1724976220557,0.04656237,139.85,139.83,27.4805081]
[1724976221158,0.04656237,139.85,139.84,3.5746]
[1724976223066,0.04656237,139.85,139.83,0.0505081]
[1724976223763,3.62106237,139.85,139.83,0.0505081]
[1724976223969,6.57,139.84,139.83,0.0505081]
[1724976225468,13.44,139.84,139.83,0.0505081]
[1724976225769,17.0146,139.84,139.83,0.0505081]
[1724976226468,13.44,139.84,139.79,3.5758]
[1724976226854,13.44,139.84,139.8,3.5756]
[1724976227566,17.0147,139.84,139.81,0.05182864]
[1724976227774,13.44,139.84,139.81,27.48182864]
[1724976229468,13.44,139.84,139.82,3.5749]
[1724976230873,13.44,139.84,139.83,3.5748]
[1724976231370,13.44,139.84,139.82,3.575]
[1724976232569,13.44,139.84,139.83,3.5748]
[1724976233771,13.44,139.84,139.83,31.0048]
[1724976238272,0.04656237,139.85,139.84,3.5746]
[1724976238475,7.5685,139.91,139.83,27.43]
[1724976238677,2.7085,139.91,139.87,27.43]
[1724976239274,3.5734,139.89,139.87,27.43]
[1724976239573,3.62672867,139.89,139.87,27.4848462]
[1724976240073,1.68,139.88,139.87,27.4848462]
[1724976241479,1.68,139.88,139.87,31.0586462]
[1724976241782,1.68,139.88,139.87,27.4848462]
[1724976242178,1.68,139.88,139.87,31.0586462]
[1724976242381,1.68,139.88,139.87,0.0548462]
[1724976242772,5.2535,139.88,139.87,0.0548462]
[1724976243985,1.68,139.88,139.87,0.0548462]
[1724976244482,10.4,139.88,139.87,0.0548462]
[1724976244783,10.4,139.88,139.87,3.6286462]
[1724976245482,8.8827,139.92,139.87,4.8948462]
[1724976245483,5.31,139.92,139.87,4.8948462]
[1724976245683,4.84,139.97,139.91,27.43]
[1724976245880,3.5715,139.97,139.91,27.43]
[1724976246074,7.6196,139.99,139.93,3.5722]
[1724976246581,0.04682762,139.97,139.95,0.05110119]
[1724976247178,6.08682762,139.97,139.95,0.05110119]
[1724976248283,3.5715,139.96,139.95,0.05110119]
[1724976249581,6.08682762,139.97,139.95,0.05110119]
[1724976250084,9.65812762,139.97,139.95,0.05110119]
[1724976252485,3.5715,139.96,139.95,0.05110119]
[1724976262986,9.5215,139.96,139.95,0.05110119]
[1724976263482,5.95,139.96,139.89,27.43]
[1724976263785,5.95,139.96,139.88,27.43]
[1724976263987,3.5722,139.94,139.91,10.98]
[1724976264185,4.84,139.95,139.92,10.98]
[1724976264488,0.05365589,139.95,139.92,11.02802285]
[1724976264686,3.62555589,139.95,139.92,11.02802285]
[1724976265190,0.05365589,139.95,139.94,10.98]
[1724976267296,5.95,139.96,139.94,10.98]
[1724976267494,7.8032,140.0,139.95,14.46259075]
[1724976267495,6.45,140.0,139.95,14.46259075]
[1724976267792,6.45,140.0,139.99,10.98]
[1724976269492,6.45,140.0,139.98,0.04533724]
[1724976269493,6.45,140.0,139.98,11.02533724]
[1724976269992,6.45,140.0,139.98,0.04533724]
[1724976270490,89.92135751,140.01,139.98,0.04533724]
[1724976277296,6.16,140.0,139.98,0.04533724]
[1724976277887,9.7305,140.0,139.98,0.04533724]
[1724976278593,3.5707,139.99,139.98,0.04533724]
[1724976280398,3.5713,139.97,139.95,27.42]
[1724976280792,3.5716,139.96,139.93,27.42]
[1724976281196,3.62073049,139.96,139.93,27.46755827]
[1724976281490,0.04913049,139.96,139.93,27.46755827]
[1724976282393,0.04913049,139.96,139.95,27.42]
[1724976282793,3.62063049,139.96,139.93,27.46755827]
[1724976283499,3.62063049,139.96,139.93,31.03965827]
[1724976283702,0.04913049,139.96,139.93,31.03965827]
[1724976285099,3.62073049,139.96,139.93,31.03965827]
[1724976287904,3.5718,139.95,139.93,27.46755827]
[1724976288398,3.572,139.94,139.93,0.04755827]
[1724976288793,3.572,139.94,139.84,2.6284]
[1724976288794,27.42,139.94,139.86,27.42]
[1724976289193,1.3778,139.93,139.86,27.42]
[1724976289797,0.04548532,139.91,139.88,0.04696323]
[1724976290000,3.573,139.9,139.88,0.04696323]
[1724976290702,0.04548532,139.91,139.88,0.04696323]
[1724976290906,6.02,139.9,139.89,27.42]
[1724976291103,6.02,139.9,139.88,0.04696323]
[1724976291603,9.5931,139.9,139.88,0.04696323]
[1724976293009,6.02,139.9,139.88,0.04696323]
[1724976294108,6.02,139.9,139.88,11.03696323]
[1724976297204,6.02,139.9,139.88,0.04696323]
[1724976297713,6.02,139.9,139.88,11.03696323]
[1724976298803,16.3932,139.9,139.88,11.03696323]
[1724976299800,3.5733,139.89,139.88,11.03696323]
[1724976300714,3.5733,139.89,139.88,0.04696323]
[1724976304906,28.45,139.9,139.82,10.99]
[1724976305111,10.99,139.88,139.82,10.99]
[1724976305412,10.99,139.88,139.82,14.5649]
[1724976305616,3.5743,139.85,139.82,10.99]
[1724976305919,0.05412088,139.85,139.82,0.05240366]
[1724976306415,11.04412088,139.85,139.82,0.05240366]
[1724976306613,10.99,139.84,139.82,0.05240366]
[1724976306818,3.5748,139.83,139.82,0.05240366]
[1724976308418,11.04412088,139.85,139.82,11.04240366]
[1724976308419,0.05412088,139.85,139.82,11.04240366]
[1724976309317,3.62852088,139.85,139.82,11.04240366]
[1724976309726,0.05412088,139.85,139.82,0.05240366]
[1724976310621,3.5748,139.84,139.82,0.05240366]
[1724976311519,3.62872088,139.85,139.82,0.05240366]
[1724976313017,3.62872088,139.85,139.82,3.62750366]
[1724976313723,0.05412088,139.85,139.84,10.99]
[1724976314416,0.05412088,139.85,139.83,10.99]
[1724976314620,0.05412088,139.85,139.82,11.04240366]
[1724976315520,8.78,139.84,139.82,11.04240366]
[1724976315929,8.78,139.84,139.83,10.99]
[1724976316333,8.78,139.84,139.83,14.5648]
[1724976321335,0.05412088,139.85,139.84,3.5746]
[1724976321646,0.05412088,139.85,139.84,14.5646]
[1724976322344,6.8,139.9,139.87,3.5738]
[1724976322529,6.8,139.9,139.86,10.99]
[1724976322931,17.79,139.9,139.8,6.0136]
[1724976323131,17.79,139.9,139.83,10.99]
[1724976323132,10.99,139.88,139.83,10.99]
[1724976323336,3.5742,139.86,139.84,0.04513173]
[1724976324432,3.5743,139.85,139.84,0.04513173]
[1724976324836,0.04523069,139.87,139.84,0.04513173]
[1724976325131,3.5742,139.86,139.84,0.04513173]
[1724976325539,12.0042,139.86,139.84,0.04513173]
[1724976326243,3.5743,139.85,139.84,0.04513173]
[1724976327934,12.0041,139.86,139.84,0.04513173]
[1724976328134,8.43,139.86,139.84,0.04513173]
[1724976330147,12.0041,139.86,139.84,0.04513173]
[1724976330447,8.43,139.86,139.84,0.04513173]
[1724976330635,3.5743,139.85,139.84,0.04513173]
[1724976331936,13.07,139.86,139.84,0.04513173]
[1724976331937,12.0041,139.86,139.84,0.04513173]
[1724976332242,8.43,139.86,139.84,0.04513173]
[1724976333445,12.0041,139.86,139.84,0.04513173]
[1724976336245,8.43,139.86,139.84,0.04513173]
[1724976336943,12.0041,139.86,139.84,0.04513173]
[1724976337645,8.43,139.86,139.85,31.0143]
[1724976337943,1.62,139.9,139.85,27.44]
[1724976338142,85.08467967,139.94,139.89,27.44]
[1724976338347,4.64,139.98,139.91,27.44]
[1724976338738,3.5715,139.97,139.93,3.5721]
[1724976338942,0.05324969,139.96,139.94,0.05409988]
[1724976339351,3.62484969,139.96,139.94,0.05409988]
[1724976340743,0.05324969,139.96,139.94,0.05409988]